Workbook

Sheet Úvodní list
B2: Navrhování a rozhodování o typu protihlukových stěn u dopravních staveb
B7: Příloha č.4 - Tabulky pro vyhodnocování příkladové situace - "Návrh protihlukové stěny v České Lípě"
B11: V této elektronické příloze mé bakalářské práce prezentuji tabulkové nástroje použité pro řešení příkladové úlohy použití vícekriteriálního rozhodování v kapitole 6. Jsou tedy předvyplněné zadanými daty pro možnost vhledu do provedených rozhodnutí a výpočtů. Podrobné popisy použitých metod a fungování těchto tabulek lze nalézt v kapitole 4 hlavní práce nebo v přílohách č.1 a 2. V tomto sešitu jsou použité stejné mustrové tabulky jako v předchozích přílohách. Tabulky také velmi dobře fungují jako podklad pro vypočítání libovolné jiné podobné úlohy s využitím kritérií a metod prezentovaných v hlavní práci.
B27: Obsah:
B28: Strom kritérií
B29: Kritériální matice
B30: Saatyho metoda
B31: Transformované matice
B32: Metoda TOPSIS

Sheet Strom kritérií
B2: Kritéria pro rozhodování o typu protihlukové stěny | N2: <- zpět na Úvodní list
B8: Kritéria technická | H8: Kritéria ekonomická
B12: Akustická kritéria | H12: Montážní kritéria
B15: Zvuková pohltivost | H15: Hmotnost dílce
B17: Vzduchová neprůzvučnost | H17: Obtížnost montáže
B20: Bezpečnostní kritéria | H20: Záruková kritéria
B23: Max. kolmé zatížení | H23: Délka záruky
B25: Max. dynamické zatížení
H26: Cenová kritéria
B27: Ostatní bezpečnostní hlediska
H29: Náklady na výstavbu
B30: Rozměrová kritéria
B33: Mezní rozměry stěny
B35: Počet rozměrových variant
B38: Kritéria udržitelnosti | H38: Kritéria estetiky
B42: Trvanlivostní kritéria | H42: Estetická kritéria
B45: Akustická trvanlivost | H45: Vhodnost do prostředí
B47: Celková životnost
B50: Kritéria životního prostředí
B53: Hlediska životního prostředí

Sheet Kriteriální matice
B2: Kriteriální matice | I2: <- zpět na úvodní list
B5: --- | C5: K1 | D5: K2 | E5: K3 | F5: K4 | G5: K5 | H5: K6 | I5: K7 | J5: K8 | K5: K9 | L5: K10 | M5: K11 | N5: K12 | O5: K13 | P5: K14 | Q5: K15
B6: V1 | C6: 0 | D6: 26 | E6: 1.96 | F6: 3.5 | G6: 2.5 | H6: 3 | I6: 5 | J6: 20 | K6: 2.5 | L6: 5 | M6: 3300 | N6: 35 | O6: 35 | P6: 2.5 | Q6: 4
B7: V2 | C7: 0 | D7: 30 | E7: =E6*0.8 -> 1.568 | F7: =F6*0.8 -> 2.8 | G7: 3.5 | H7: 3.5 | I7: 2 | J7: 25 | K7: 4 | L7: 5 | M7: 2950 | N7: 25 | O7: 25 | P7: 4 | Q7: 4
B8: V3 | C8: 12 | D8: 27 | E8: 1.68 | F8: 7.8 | G8: 3 | H8: 5 | I8: 10 | J8: 54 | K8: 4 | L8: 10 | M8: 4000 | N8: 25 | O8: 25 | P8: 4 | Q8: 4.5
B9: V4 | C9: 9 | D9: 25 | E9: 1.85 | F9: 5.3 | G9: 4 | H9: 4 | I9: 10 | J9: 36 | K9: 2.5 | L9: 5 | M9: 5300 | N9: 25 | O9: 25 | P9: 3.5 | Q9: 3
B10: V5 | C10: 9 | D10: 45 | E10: 3.9 | F10: 20 | G10: 4.5 | H10: 5 | I10: 10 | J10: 200 | K10: 2 | L10: 5 | M10: 3500 | N10: 35 | O10: 35 | P10: 4 | Q10: 2
B11: V6 | C11: 0 | D11: 21 | E11: 3.16 | F11: 15 | G11: 3 | H11: 5 | I11: 6 | J11: 25 | K11: 3 | L11: 5 | M11: 2200 | N11: 30 | O11: 30 | P11: 3.5 | Q11: 2.5
B12: V7 | C12: 5 | D12: 28 | E12: =3.9*0.8 -> 3.12 | F12: =20*0.8 -> 16 | G12: 3 | H12: 8 | I12: 1 | J12: 200 | K12: 4 | L12: 5 | M12: =2700*0.75 -> 2025 | N12: 50 | O12: 50 | P12: 4 | Q12: 4
C13: x | D13: x | E13: x | F13: x | G13: x | H13: x | I13: x | J13: x | K13: x | L13: x | M13: x | N13: x | O13: x | P13: x | Q13: x
C14: x | D14: x | E14: x | F14: x | G14: x | H14: x | I14: x | J14: x | K14: x | L14: x | M14: x | N14: x | O14: x | P14: x | Q14: x
C15: x | D15: x | E15: x | F15: x | G15: x | H15: x | I15: x | J15: x | K15: x | L15: x | M15: x | N15: x | O15: x | P15: x | Q15: x
C16: x | D16: x | E16: x | F16: x | G16: x | H16: x | I16: x | J16: x | K16: x | L16: x | M16: x | N16: x | O16: x | P16: x | Q16: x
C17: x | D17: x | E17: x | F17: x | G17: x | H17: x | I17: x | J17: x | K17: x | L17: x | M17: x | N17: x | O17: x | P17: x | Q17: x
C18: x | D18: x | E18: x | F18: x | G18: x | H18: x | I18: x | J18: x | K18: x | L18: x | M18: x | N18: x | O18: x | P18: x | Q18: x
C19: x | D19: x | E19: x | F19: x | G19: x | H19: x | I19: x | J19: x | K19: x | L19: x | M19: x | N19: x | O19: x | P19: x | Q19: x
C20: x | D20: x | E20: x | F20: x | G20: x | H20: x | I20: x | J20: x | K20: x | L20: x | M20: x | N20: x | O20: x | P20: x | Q20: x
B22: Tabulka kritérií: | L22: Tabulka variant:
B23: Ozn. | C23: Popis | G23: Charakteristika | I23: Měrná jednotka | L23: Ozn. | M23: Popis
B24: K1 | C24: Zvuková pohltivost | G24: max | I24: dB | L24: V1 | M24: Transparentní stěna na hliníkovém soklu
B25: K2 | C25: Vzduchová neprůzvučnost | G25: max | I25: dB | L25: V2 | M25: Transparentní stěna na železobetonovém soklu
B26: K3 | C26: Maximální kolmé zatížení | G26: max | I26: kN/m2 | L26: V3 | M26: Stěna z recyklovaného plastu
B27: K4 | C27: Maximální dynamické zatížení | G27: max | I27: kNm | L27: V4 | M27: Stěna z dřevocementu na železobetonovém soklu
B28: K5 | C28: Ostatní bezpečnostní hlediska | G28: max | I28: stupnice 1-5 | L28: V5 | M28: Stěna z betonových panelů na železobetonovém soklu
B29: K6 | C29: Mezní rozměry stěny | G29: max | I29: stupnice 0-10 | L29: V6 | M29: Stěna z hliníkových panelů na železobetonovém soklu
B30: K7 | C30: Počet rozměrových variant | G30: max | I30: počet typů | L30: V7 | M30: Stěna z gabionů
B31: K8 | C31: Hmotnost dílce | G31: min | I31: kg/m2
B32: K9 | C32: Obtížnost montáže | G32: min | I32: stupnice 1-5
B33: K10 | C33: Délka záruky | G33: max | I33: roky
B34: K11 | C34: Náklady na výstavbu | G34: min | I34: Kč/m2
B35: K12 | C35: Akustická trvanlivost | G35: max | I35: roky
B36: K13 | C36: Celková životnost | G36: max | I36: roky
B37: K14 | C37: Hlediska životního prostředí | G37: max | I37: stupnice 1-5
B38: K15 | C38: Vhodnost do prostředí | G38: max | I38: stupnice 1-5

Sheet Saatyho metoda
B2: Saatyho matice + geometrický průměr | J2: <- zpět na Úvodní list
B5: Saatyho matice
B6: --- | C6: K1 | D6: K2 | E6: K3 | F6: K4 | G6: K5 | H6: K6 | I6: K7 | J6: K8 | K6: K9 | L6: K10 | M6: K11 | N6: K12 | O6: K13 | P6: K14 | Q6: K15
B7: K1 | C7: 1 | D7: =1/7 -> 0.1428571429 | E7: 1 | F7: 1 | G7: =1/3 -> 0.3333333333 | H7: =1/4 -> 0.25 | I7: =1/3 -> 0.3333333333 | J7: =1 -> 1 | K7: =1/2 -> 0.5 | L7: 3 | M7: =1/3 -> 0.3333333333 | N7: =1/4 -> 0.25 | O7: =1/5 -> 0.2 | P7: =1/5 -> 0.2 | Q7: =1/8 -> 0.125
B8: K2 | C8: =1/D7 -> 7 | D8: 1 | E8: 5 | F8: 4 | G8: 3 | H8: 2 | I8: 3 | J8: 7 | K8: 6 | L8: 8 | M8: 4 | N8: 2 | O8: 2 | P8: 1 | Q8: 1
B9: K3 | C9: =1/E7 -> 1 | D9: =1/E8 -> 0.2 | E9: 1 | F9: 1 | G9: =1/2 -> 0.5 | H9: =1/3 -> 0.3333333333 | I9: =1/3 -> 0.3333333333 | J9: 3 | K9: 2 | L9: 6 | M9: =1/2 -> 0.5 | N9: =1/2 -> 0.5 | O9: =1/3 -> 0.3333333333 | P9: =1/3 -> 0.3333333333 | Q9: =1/4 -> 0.25
B10: K4 | C10: =1/F7 -> 1 | D10: =1/F8 -> 0.25 | E10: =1/F9 -> 1 | F10: 1 | G10: 1 | H10: =1/3 -> 0.3333333333 | I10: =1/2 -> 0.5 | J10: 3 | K10: 2 | L10: 5 | M10: =1/3 -> 0.3333333333 | N10: =1/2 -> 0.5 | O10: =1/3 -> 0.3333333333 | P10: =1/3 -> 0.3333333333 | Q10: =1/5 -> 0.2
B11: K5 | C11: =1/G7 -> 3 | D11: =1/G8 -> 0.3333333333 | E11: =1/G9 -> 2 | F11: =1/G10 -> 1 | G11: 1 | H11: =1 -> 1 | I11: =1/2 -> 0.5 | J11: 4 | K11: 4 | L11: 7 | M11: 2 | N11: 2 | O11: =1/2 -> 0.5 | P11: =1 -> 1 | Q11: =2 -> 2
B12: K6 | C12: =1/H7 -> 4 | D12: =1/H8 -> 0.5 | E12: =1/H9 -> 3 | F12: =1/H10 -> 3 | G12: =1/H11 -> 1 | H12: 1 | I12: 1 | J12: =4 -> 4 | K12: =2 -> 2 | L12: =7 -> 7 | M12: =1 -> 1 | N12: =1/2 -> 0.5 | O12: =1/3 -> 0.3333333333 | P12: =1/4 -> 0.25 | Q12: =1/5 -> 0.2
B13: K7 | C13: =1/I7 -> 3 | D13: =1/I8 -> 0.3333333333 | E13: =1/I9 -> 3 | F13: =1/I10 -> 2 | G13: =1/I11 -> 2 | H13: =1/I12 -> 1 | I13: 1 | J13: =1 -> 1 | K13: =1 -> 1 | L13: 5 | M13: =1/3 -> 0.3333333333 | N13: =1/4 -> 0.25 | O13: =1/5 -> 0.2 | P13: =1/6 -> 0.1666666667 | Q13: =1/7 -> 0.1428571429
B14: K8 | C14: =1/J7 -> 1 | D14: =1/J8 -> 0.1428571429 | E14: =1/J9 -> 0.3333333333 | F14: =1/J10 -> 0.3333333333 | G14: =1/J11 -> 0.25 | H14: =1/J12 -> 0.25 | I14: =1/J13 -> 1 | J14: 1 | K14: =1/2 -> 0.5 | L14: =3 -> 3 | M14: =1/2 -> 0.5 | N14: =1/4 -> 0.25 | O14: =1/4 -> 0.25 | P14: =1/3 -> 0.3333333333 | Q14: =1/6 -> 0.1666666667
B15: K9 | C15: =1/K7 -> 2 | D15: =1/K8 -> 0.1666666667 | E15: =1/K9 -> 0.5 | F15: =1/K10 -> 0.5 | G15: =1/K11 -> 0.25 | H15: =1/K12 -> 0.5 | I15: =1/K13 -> 1 | J15: =1/K14 -> 2 | K15: 1 | L15: =5 -> 5 | M15: 1 | N15: =1/3 -> 0.3333333333 | O15: =1/5 -> 0.2 | P15: =1/3 -> 0.3333333333 | Q15: =1/3 -> 0.3333333333
B16: K10 | C16: =1/L7 -> 0.3333333333 | D16: =1/L8 -> 0.125 | E16: =1/L9 -> 0.1666666667 | F16: =1/L10 -> 0.2 | G16: =1/L11 -> 0.1428571429 | H16: =1/L12 -> 0.1428571429 | I16: =1/L13 -> 0.2 | J16: =1/L14 -> 0.3333333333 | K16: =1/L15 -> 0.2 | L16: 1 | M16: =1/3 -> 0.3333333333 | N16: =1/5 -> 0.2 | O16: =1/5 -> 0.2 | P16: =1/7 -> 0.1428571429 | Q16: =1/8 -> 0.125
B17: K11 | C17: =1/M7 -> 3 | D17: =1/M8 -> 0.25 | E17: =1/M9 -> 2 | F17: =1/M10 -> 3 | G17: =1/M11 -> 0.5 | H17: =1/M12 -> 1 | I17: =1/M13 -> 3 | J17: =1/M14 -> 2 | K17: =1/M15 -> 1 | L17: =1/M16 -> 3 | M17: 1 | N17: =1 -> 1 | O17: =1/2 -> 0.5 | P17: =1/3 -> 0.3333333333 | Q17: =1/5 -> 0.2
B18: K12 | C18: =1/N7 -> 4 | D18: =1/N8 -> 0.5 | E18: =1/N9 -> 2 | F18: =1/N10 -> 2 | G18: =1/N11 -> 0.5 | H18: =1/N12 -> 2 | I18: =1/N13 -> 4 | J18: =1/N14 -> 4 | K18: =1/N15 -> 3 | L18: =1/N16 -> 5 | M18: =1/N17 -> 1 | N18: 1 | O18: =1 -> 1 | P18: =1 -> 1 | Q18: =1/2 -> 0.5
B19: K13 | C19: =1/O7 -> 5 | D19: =1/O8 -> 0.5 | E19: =1/O9 -> 3 | F19: =1/O10 -> 3 | G19: =1/O11 -> 2 | H19: =1/O12 -> 3 | I19: =1/O13 -> 5 | J19: =1/O14 -> 4 | K19: =1/O15 -> 5 | L19: =1/O16 -> 5 | M19: =1/O17 -> 2 | N19: =1/O18 -> 1 | O19: 1 | P19: =1 -> 1 | Q19: =1 -> 1
B20: K14 | C20: =1/P7 -> 5 | D20: =1/P8 -> 1 | E20: =1/P9 -> 3 | F20: =1/P10 -> 3 | G20: =1/P11 -> 1 | H20: =1/P12 -> 4 | I20: =1/P13 -> 6 | J20: =1/P14 -> 3 | K20: =1/P15 -> 3 | L20: =1/P16 -> 7 | M20: =1/P17 -> 3 | N20: =1/P18 -> 1 | O20: =1/P19 -> 1 | P20: 1 | Q20: =3 -> 3
B21: K15 | C21: =1/Q7 -> 8 | D21: =1/Q8 -> 1 | E21: =1/Q9 -> 4 | F21: =1/Q10 -> 5 | G21: =1/Q11 -> 0.5 | H21: =1/Q12 -> 5 | I21: =1/Q13 -> 7 | J21: =1/Q14 -> 6 | K21: =1/Q15 -> 3 | L21: =1/Q16 -> 8 | M21: =1/Q17 -> 5 | N21: =1/Q18 -> 2 | O21: =1/Q19 -> 1 | P21: =1/Q20 -> 0.3333333333 | Q21: 1
B25: Výpočet vah pomocí geometrického průměru | F25: Počet kritérií: | H25: =COUNTIF($C$7:$Q$7,"<10") -> 15
B26: Kritérium | C26: Geom. průměr | D26: Normovaná váha
B27: K1 | C27: =PRODUCT(7:7)^(1/$H$25) -> 0.4229593517 | D27: =Tabulka1434[[#This Row],[Geom. průměr]]/SUM($C$27:$C$41) -> 0.02194929365
B28: K2 | C28: =PRODUCT(8:8)^(1/$H$25) -> 2.988527937 | D28: =Tabulka1434[[#This Row],[Geom. průměr]]/SUM($C$27:$C$41) -> 0.155088372
B29: K3 | C29: 0.675429202 | D29: =Tabulka1434[[#This Row],[Geom. průměr]]/SUM($C$27:$C$41) -> 0.03505110794
B30: K4 | C30: 0.6988271188 | D30: =Tabulka1434[[#This Row],[Geom. průměr]]/SUM($C$27:$C$41) -> 0.03626533277
B31: K5 | C31: 1.502283397 | D31: =Tabulka1434[[#This Row],[Geom. průměr]]/SUM($C$27:$C$41) -> 0.07796035078
B32: K6 | C32: 1.152440784 | D32: =Tabulka1434[[#This Row],[Geom. průměr]]/SUM($C$27:$C$41) -> 0.0598054188
B33: K7 | C33: 0.7794412403 | D33: =Tabulka1434[[#This Row],[Geom. průměr]]/SUM($C$27:$C$41) -> 0.04044876793
B34: K8 | C34: 0.4241119891 | D34: =Tabulka1434[[#This Row],[Geom. průměr]]/SUM($C$27:$C$41) -> 0.02200910926
B35: K9 | C35: 0.6201446479 | D35: =Tabulka1434[[#This Row],[Geom. průměr]]/SUM($C$27:$C$41) -> 0.03218213978
B36: K10 | C36: 0.2139328079 | D36: =Tabulka1434[[#This Row],[Geom. průměr]]/SUM($C$27:$C$41) -> 0.01110195105
B37: K11 | C37: 1.020208454 | D37: =Tabulka1434[[#This Row],[Geom. průměr]]/SUM($C$27:$C$41) -> 0.05294327892
B38: K12 | C38: 1.580585823 | D38: =Tabulka1434[[#This Row],[Geom. průměr]]/SUM($C$27:$C$41) -> 0.08202382147
B39: K13 | C39: 2.197972484 | D39: =Tabulka1434[[#This Row],[Geom. průměr]]/SUM($C$27:$C$41) -> 0.1140628367
B40: K14 | C40: 2.431086739 | D40: =Tabulka1434[[#This Row],[Geom. průměr]]/SUM($C$27:$C$41) -> 0.1261602007
B41: K15 | C41: 2.56188689 | D41: =Tabulka1434[[#This Row],[Geom. průměr]]/SUM($C$27:$C$41) -> 0.1329480183

Sheet Transformované matice
B2: Transformované matice | I2: <- zpět na úvodní list
B5: Maximalizační matice
B6: --- | C6: K1 | D6: K2 | E6: K3 | F6: K4 | G6: K5 | H6: K6 | I6: K7 | J6: K8 | K6: K9 | L6: K10 | M6: K11 | N6: K12 | O6: K13 | P6: K14 | Q6: K15
B7: V1 | C7: ='Kriteriální matice'!C6 -> 0 | D7: ='Kriteriální matice'!D6 -> 26 | E7: ='Kriteriální matice'!E6 -> 1.96 | F7: ='Kriteriální matice'!F6 -> 3.5 | G7: ='Kriteriální matice'!G6 -> 2.5 | H7: ='Kriteriální matice'!H6 -> 3 | I7: ='Kriteriální matice'!I6 -> 5 | J7: =$J$22-'Kriteriální matice'!J6 -> 180 | K7: ='Kriteriální matice'!K6 -> 2.5 | L7: ='Kriteriální matice'!L6 -> 5 | M7: =$M$22-'Kriteriální matice'!M6 -> 2000 | N7: ='Kriteriální matice'!N6 -> 35 | O7: ='Kriteriální matice'!O6 -> 35 | P7: ='Kriteriální matice'!P6 -> 2.5 | Q7: ='Kriteriální matice'!Q6 -> 4
B8: V2 | C8: ='Kriteriální matice'!C7 -> 0 | D8: ='Kriteriální matice'!D7 -> 30 | E8: ='Kriteriální matice'!E7 -> 1.568 | F8: ='Kriteriální matice'!F7 -> 2.8 | G8: ='Kriteriální matice'!G7 -> 3.5 | H8: ='Kriteriální matice'!H7 -> 3.5 | I8: ='Kriteriální matice'!I7 -> 2 | J8: =$J$22-'Kriteriální matice'!J7 -> 175 | K8: ='Kriteriální matice'!K7 -> 4 | L8: ='Kriteriální matice'!L7 -> 5 | M8: =$M$22-'Kriteriální matice'!M7 -> 2350 | N8: ='Kriteriální matice'!N7 -> 25 | O8: ='Kriteriální matice'!O7 -> 25 | P8: ='Kriteriální matice'!P7 -> 4 | Q8: ='Kriteriální matice'!Q7 -> 4
B9: V3 | C9: ='Kriteriální matice'!C8 -> 12 | D9: ='Kriteriální matice'!D8 -> 27 | E9: ='Kriteriální matice'!E8 -> 1.68 | F9: ='Kriteriální matice'!F8 -> 7.8 | G9: ='Kriteriální matice'!G8 -> 3 | H9: ='Kriteriální matice'!H8 -> 5 | I9: ='Kriteriální matice'!I8 -> 10 | J9: =$J$22-'Kriteriální matice'!J8 -> 146 | K9: ='Kriteriální matice'!K8 -> 4 | L9: ='Kriteriální matice'!L8 -> 10 | M9: =$M$22-'Kriteriální matice'!M8 -> 1300 | N9: ='Kriteriální matice'!N8 -> 25 | O9: ='Kriteriální matice'!O8 -> 25 | P9: ='Kriteriální matice'!P8 -> 4 | Q9: ='Kriteriální matice'!Q8 -> 4.5
B10: V4 | C10: ='Kriteriální matice'!C9 -> 9 | D10: ='Kriteriální matice'!D9 -> 25 | E10: ='Kriteriální matice'!E9 -> 1.85 | F10: ='Kriteriální matice'!F9 -> 5.3 | G10: ='Kriteriální matice'!G9 -> 4 | H10: ='Kriteriální matice'!H9 -> 4 | I10: ='Kriteriální matice'!I9 -> 10 | J10: =$J$22-'Kriteriální matice'!J9 -> 164 | K10: ='Kriteriální matice'!K9 -> 2.5 | L10: ='Kriteriální matice'!L9 -> 5 | M10: =$M$22-'Kriteriální matice'!M9 -> 0 | N10: ='Kriteriální matice'!N9 -> 25 | O10: ='Kriteriální matice'!O9 -> 25 | P10: ='Kriteriální matice'!P9 -> 3.5 | Q10: ='Kriteriální matice'!Q9 -> 3
B11: V5 | C11: ='Kriteriální matice'!C10 -> 9 | D11: ='Kriteriální matice'!D10 -> 45 | E11: ='Kriteriální matice'!E10 -> 3.9 | F11: ='Kriteriální matice'!F10 -> 20 | G11: ='Kriteriální matice'!G10 -> 4.5 | H11: ='Kriteriální matice'!H10 -> 5 | I11: ='Kriteriální matice'!I10 -> 10 | J11: =$J$22-'Kriteriální matice'!J10 -> 0 | K11: ='Kriteriální matice'!K10 -> 2 | L11: ='Kriteriální matice'!L10 -> 5 | M11: =$M$22-'Kriteriální matice'!M10 -> 1800 | N11: ='Kriteriální matice'!N10 -> 35 | O11: ='Kriteriální matice'!O10 -> 35 | P11: ='Kriteriální matice'!P10 -> 4 | Q11: ='Kriteriální matice'!Q10 -> 2
B12: V6 | C12: ='Kriteriální matice'!C11 -> 0 | D12: ='Kriteriální matice'!D11 -> 21 | E12: ='Kriteriální matice'!E11 -> 3.16 | F12: ='Kriteriální matice'!F11 -> 15 | G12: ='Kriteriální matice'!G11 -> 3 | H12: ='Kriteriální matice'!H11 -> 5 | I12: ='Kriteriální matice'!I11 -> 6 | J12: =$J$22-'Kriteriální matice'!J11 -> 175 | K12: ='Kriteriální matice'!K11 -> 3 | L12: ='Kriteriální matice'!L11 -> 5 | M12: =$M$22-'Kriteriální matice'!M11 -> 3100 | N12: ='Kriteriální matice'!N11 -> 30 | O12: ='Kriteriální matice'!O11 -> 30 | P12: ='Kriteriální matice'!P11 -> 3.5 | Q12: ='Kriteriální matice'!Q11 -> 2.5
B13: V7 | C13: ='Kriteriální matice'!C12 -> 5 | D13: ='Kriteriální matice'!D12 -> 28 | E13: ='Kriteriální matice'!E12 -> 3.12 | F13: ='Kriteriální matice'!F12 -> 16 | G13: ='Kriteriální matice'!G12 -> 3 | H13: ='Kriteriální matice'!H12 -> 8 | I13: ='Kriteriální matice'!I12 -> 1 | J13: =$J$22-'Kriteriální matice'!J12 -> 0 | K13: ='Kriteriální matice'!K12 -> 4 | L13: ='Kriteriální matice'!L12 -> 5 | M13: =$M$22-'Kriteriální matice'!M12 -> 3275 | N13: ='Kriteriální matice'!N12 -> 50 | O13: ='Kriteriální matice'!O12 -> 50 | P13: ='Kriteriální matice'!P12 -> 4 | Q13: ='Kriteriální matice'!Q12 -> 4
C14: ='Kriteriální matice'!C13 -> x | D14: ='Kriteriální matice'!D13 -> x | E14: ='Kriteriální matice'!E13 -> x | F14: ='Kriteriální matice'!F13 -> x | G14: ='Kriteriální matice'!G13 -> x | H14: ='Kriteriální matice'!H13 -> x | I14: ='Kriteriální matice'!I13 -> x | J14: ='Kriteriální matice'!J13 -> x | K14: ='Kriteriální matice'!K13 -> x | L14: ='Kriteriální matice'!L13 -> x | M14: ='Kriteriální matice'!M13 -> x | N14: ='Kriteriální matice'!N13 -> x | O14: ='Kriteriální matice'!O13 -> x | P14: ='Kriteriální matice'!P13 -> x | Q14: ='Kriteriální matice'!Q13 -> x
C15: ='Kriteriální matice'!C14 -> x | D15: ='Kriteriální matice'!D14 -> x | E15: ='Kriteriální matice'!E14 -> x | F15: ='Kriteriální matice'!F14 -> x | G15: ='Kriteriální matice'!G14 -> x | H15: ='Kriteriální matice'!H14 -> x | I15: ='Kriteriální matice'!I14 -> x | J15: ='Kriteriální matice'!J14 -> x | K15: ='Kriteriální matice'!K14 -> x | L15: ='Kriteriální matice'!L14 -> x | M15: ='Kriteriální matice'!M14 -> x | N15: ='Kriteriální matice'!N14 -> x | O15: ='Kriteriální matice'!O14 -> x | P15: ='Kriteriální matice'!P14 -> x | Q15: ='Kriteriální matice'!Q14 -> x
C16: ='Kriteriální matice'!C15 -> x | D16: ='Kriteriální matice'!D15 -> x | E16: ='Kriteriální matice'!E15 -> x | F16: ='Kriteriální matice'!F15 -> x | G16: ='Kriteriální matice'!G15 -> x | H16: ='Kriteriální matice'!H15 -> x | I16: ='Kriteriální matice'!I15 -> x | J16: ='Kriteriální matice'!J15 -> x | K16: ='Kriteriální matice'!K15 -> x | L16: ='Kriteriální matice'!L15 -> x | M16: ='Kriteriální matice'!M15 -> x | N16: ='Kriteriální matice'!N15 -> x | O16: ='Kriteriální matice'!O15 -> x | P16: ='Kriteriální matice'!P15 -> x | Q16: ='Kriteriální matice'!Q15 -> x
C17: ='Kriteriální matice'!C16 -> x | D17: ='Kriteriální matice'!D16 -> x | E17: ='Kriteriální matice'!E16 -> x | F17: ='Kriteriální matice'!F16 -> x | G17: ='Kriteriální matice'!G16 -> x | H17: ='Kriteriální matice'!H16 -> x | I17: ='Kriteriální matice'!I16 -> x | J17: ='Kriteriální matice'!J16 -> x | K17: ='Kriteriální matice'!K16 -> x | L17: ='Kriteriální matice'!L16 -> x | M17: ='Kriteriální matice'!M16 -> x | N17: ='Kriteriální matice'!N16 -> x | O17: ='Kriteriální matice'!O16 -> x | P17: ='Kriteriální matice'!P16 -> x | Q17: ='Kriteriální matice'!Q16 -> x
C18: ='Kriteriální matice'!C17 -> x | D18: ='Kriteriální matice'!D17 -> x | E18: ='Kriteriální matice'!E17 -> x | F18: ='Kriteriální matice'!F17 -> x | G18: ='Kriteriální matice'!G17 -> x | H18: ='Kriteriální matice'!H17 -> x | I18: ='Kriteriální matice'!I17 -> x | J18: ='Kriteriální matice'!J17 -> x | K18: ='Kriteriální matice'!K17 -> x | L18: ='Kriteriální matice'!L17 -> x | M18: ='Kriteriální matice'!M17 -> x | N18: ='Kriteriální matice'!N17 -> x | O18: ='Kriteriální matice'!O17 -> x | P18: ='Kriteriální matice'!P17 -> x | Q18: ='Kriteriální matice'!Q17 -> x
C19: ='Kriteriální matice'!C18 -> x | D19: ='Kriteriální matice'!D18 -> x | E19: ='Kriteriální matice'!E18 -> x | F19: ='Kriteriální matice'!F18 -> x | G19: ='Kriteriální matice'!G18 -> x | H19: ='Kriteriální matice'!H18 -> x | I19: ='Kriteriální matice'!I18 -> x | J19: ='Kriteriální matice'!J18 -> x | K19: ='Kriteriální matice'!K18 -> x | L19: ='Kriteriální matice'!L18 -> x | M19: ='Kriteriální matice'!M18 -> x | N19: ='Kriteriální matice'!N18 -> x | O19: ='Kriteriální matice'!O18 -> x | P19: ='Kriteriální matice'!P18 -> x | Q19: ='Kriteriální matice'!Q18 -> x
C20: ='Kriteriální matice'!C19 -> x | D20: ='Kriteriální matice'!D19 -> x | E20: ='Kriteriální matice'!E19 -> x | F20: ='Kriteriální matice'!F19 -> x | G20: ='Kriteriální matice'!G19 -> x | H20: ='Kriteriální matice'!H19 -> x | I20: ='Kriteriální matice'!I19 -> x | J20: ='Kriteriální matice'!J19 -> x | K20: ='Kriteriální matice'!K19 -> x | L20: ='Kriteriální matice'!L19 -> x | M20: ='Kriteriální matice'!M19 -> x | N20: ='Kriteriální matice'!N19 -> x | O20: ='Kriteriální matice'!O19 -> x | P20: ='Kriteriální matice'!P19 -> x | Q20: ='Kriteriální matice'!Q19 -> x
C21: ='Kriteriální matice'!C20 -> x | D21: ='Kriteriální matice'!D20 -> x | E21: ='Kriteriální matice'!E20 -> x | F21: ='Kriteriální matice'!F20 -> x | G21: ='Kriteriální matice'!G20 -> x | H21: ='Kriteriální matice'!H20 -> x | I21: ='Kriteriální matice'!I20 -> x | J21: ='Kriteriální matice'!J20 -> x | K21: ='Kriteriální matice'!K20 -> x | L21: ='Kriteriální matice'!L20 -> x | M21: ='Kriteriální matice'!M20 -> x | N21: ='Kriteriální matice'!N20 -> x | O21: ='Kriteriální matice'!O20 -> x | P21: ='Kriteriální matice'!P20 -> x | Q21: ='Kriteriální matice'!Q20 -> x
B22: Nejvyšší hodnota | J22: 200 | M22: 5300
B23: Transformace
B24: Detransformace
B27: Normalizovaná matice pro váž. součet
B28: Nejvyšší hodnota | C28: =MAX(C7:C21) -> 12 | D28: =MAX(D7:D21) -> 45 | E28: 3.9 | F28: 20 | G28: 4.5 | H28: 8 | I28: 10 | J28: 180 | K28: 4 | L28: 10 | M28: 3275 | N28: 50 | O28: 50 | P28: 4 | Q28: 4.5
B29: Nejnižší hodnota | C29: =MIN(C7:C21) -> 0 | D29: =MIN(D7:D21) -> 21 | E29: 1.568 | F29: 2.8 | G29: 2.5 | H29: 3 | I29: 1 | J29: 0 | K29: 2 | L29: 5 | M29: 0 | N29: 25 | O29: 25 | P29: 2.5 | Q29: 2
B30: --- | C30: k1 | D30: k2 | E30: k3 | F30: k4 | G30: k5 | H30: k6
B31: v1 | C31: =(C7-C$29)/(C$28-C$29) -> 0 | D31: =(D7-D$29)/(D$28-D$29) -> 0.2083333333 | E31: 0.1680960549 | F31: 0.04069767442 | G31: 0 | H31: 0 | I31: 0.4444444444 | J31: 1 | K31: 0.25 | L31: 0 | M31: 0.6106870229 | N31: 0.4 | O31: 0.4 | P31: 0 | Q31: 0.8
B32: v2 | C32: =(C8-C$29)/(C$28-C$29) -> 0 | D32: 0.375 | E32: 0 | F32: 0 | G32: 0.5 | H32: 0.1 | I32: 0.1111111111 | J32: 0.9722222222 | K32: 1 | L32: 0 | M32: 0.7175572519 | N32: 0 | O32: 0 | P32: 1 | Q32: 0.8
B33: v3 | C33: 1 | D33: 0.25 | E33: 0.04802744425 | F33: 0.2906976744 | G33: 0.25 | H33: 0.4 | I33: 1 | J33: 0.8111111111 | K33: 1 | L33: 1 | M33: 0.3969465649 | N33: 0 | O33: 0 | P33: 1 | Q33: 1
B34: v4 | C34: 0.75 | D34: 0.1666666667 | E34: 0.1209262436 | F34: 0.1453488372 | G34: 0.75 | H34: 0.2 | I34: 1 | J34: 0.9111111111 | K34: 0.25 | L34: 0 | M34: 0 | N34: 0 | O34: 0 | P34: 0.6666666667 | Q34: 0.4
B35: v5 | C35: 0.75 | D35: 1 | E35: 1 | F35: 1 | G35: 1 | H35: 0.4 | I35: 1 | J35: 0 | K35: 0 | L35: 0 | M35: 0.5496183206 | N35: 0.4 | O35: 0.4 | P35: 1 | Q35: 0
B36: v6 | C36: 0 | D36: 0 | E36: 0.6826758148 | F36: 0.7093023256 | G36: 0.25 | H36: 0.4 | I36: 0.5555555556 | J36: 0.9722222222 | K36: 0.5 | L36: 0 | M36: 0.9465648855 | N36: 0.2 | O36: 0.2 | P36: 0.6666666667 | Q36: 0.2
C37: 0.4166666667 | D37: 0.2916666667 | E37: 0.6655231561 | F37: 0.7674418605 | G37: 0.25 | H37: 1 | I37: 0 | J37: 0 | K37: 1 | L37: 0 | M37: 1 | N37: 1 | O37: 1 | P37: 1 | Q37: 0.8
B48: Normalizovaná matice pro TOPSIS
B49: Jmenovatel | C49: =((SUM(C7:C21))^2)^(1/2) -> 35 | D49: =((SUM(D7:D21))^2)^(1/2) -> 202 | E49: 17.238 | F49: 70.4 | G49: 23.5 | H49: 33.5 | I49: 44 | J49: 840 | K49: 22 | L49: 40 | M49: 13825 | N49: 225 | O49: 225 | P49: 25.5 | Q49: 24
B50: --- | C50: k1 | D50: k2 | E50: k3 | F50: k4 | G50: k5 | H50: k6
B51: v1 | C51: =(C7/C$49) -> 0 | D51: =(D7/D$49) -> 0.1287128713 | E51: 0.1137022856 | F51: 0.04971590909 | G51: 0.1063829787 | H51: 0.08955223881 | I51: 0.1136363636 | J51: 0.2142857143 | K51: 0.1136363636 | L51: 0.125 | M51: 0.1446654611 | N51: 0.1555555556 | O51: 0.1555555556 | P51: 0.09803921569 | Q51: 0.1666666667
B52: v2 | C52: =(C8/C$49) -> 0 | D52: 0.1485148515 | E52: 0.09096182852 | F52: 0.03977272727 | G52: 0.1489361702 | H52: 0.1044776119 | I52: 0.04545454545 | J52: 0.2083333333 | K52: 0.1818181818 | L52: 0.125 | M52: 0.1699819168 | N52: 0.1111111111 | O52: 0.1111111111 | P52: 0.1568627451 | Q52: 0.1666666667
B53: v3 | C53: 0.3428571429 | D53: 0.1336633663 | E53: 0.09745910198 | F53: 0.1107954545 | G53: 0.1276595745 | H53: 0.1492537313 | I53: 0.2272727273 | J53: 0.1738095238 | K53: 0.1818181818 | L53: 0.25 | M53: 0.09403254973 | N53: 0.1111111111 | O53: 0.1111111111 | P53: 0.1568627451 | Q53: 0.1875
B54: v4 | C54: 0.2571428571 | D54: 0.1237623762 | E54: 0.1073210349 | F54: 0.07528409091 | G54: 0.170212766 | H54: 0.1194029851 | I54: 0.2272727273 | J54: 0.1952380952 | K54: 0.1136363636 | L54: 0.125 | M54: 0 | N54: 0.1111111111 | O54: 0.1111111111 | P54: 0.137254902 | Q54: 0.125
B55: v5 | C55: 0.2571428571 | D55: 0.2227722772 | E55: 0.2262443439 | F55: 0.2840909091 | G55: 0.1914893617 | H55: 0.1492537313 | I55: 0.2272727273 | J55: 0 | K55: 0.09090909091 | L55: 0.125 | M55: 0.130198915 | N55: 0.1555555556 | O55: 0.1555555556 | P55: 0.1568627451 | Q55: 0.08333333333
B56: v6 | C56: 0 | D56: 0.103960396 | E56: 0.1833159299 | F56: 0.2130681818 | G56: 0.1276595745 | H56: 0.1492537313 | I56: 0.1363636364 | J56: 0.2083333333 | K56: 0.1363636364 | L56: 0.125 | M56: 0.2242314647 | N56: 0.1333333333 | O56: 0.1333333333 | P56: 0.137254902 | Q56: 0.1041666667
C57: 0.1428571429 | D57: 0.1386138614 | E57: 0.1809954751 | F57: 0.2272727273 | G57: 0.1276595745 | H57: 0.2388059701 | I57: 0.02272727273 | J57: 0 | K57: 0.1818181818 | L57: 0.125 | M57: 0.2368896926 | N57: 0.2222222222 | O57: 0.2222222222 | P57: 0.1568627451 | Q57: 0.1666666667

Sheet Metoda TOPSIS
B2: Metoda TOPSIS | I2: <- zpět na úvodní list
B5: Vážená normalizovaná matice
B6: Váha kritéria | C6: 0.022 | D6: 0.155 | E6: 0.035 | F6: 0.036 | G6: 0.078 | H6: 0.06 | I6: 0.04 | J6: 0.022 | K6: 0.032 | L6: 0.011 | M6: 0.053 | N6: 0.082 | O6: 0.114 | P6: 0.126 | Q6: 0.133
B7: --- | C7: k1 | D7: k2 | E7: k3 | F7: k4 | G7: k5 | H7: k6
B8: V1 | C8: ='Transformované matice'!C51*C$6 -> 0 | D8: ='Transformované matice'!D51*D$6 -> 0.01995049505 | E8: ='Transformované matice'!E51*E$6 -> 0.003979579998 | F8: ='Transformované matice'!F51*F$6 -> 0.001789772727 | G8: ='Transformované matice'!G51*G$6 -> 0.00829787234 | H8: ='Transformované matice'!H51*H$6 -> 0.005373134328 | I8: ='Transformované matice'!I51*I$6 -> 0.004545454545 | J8: ='Transformované matice'!J51*J$6 -> 0.004714285714 | K8: ='Transformované matice'!K51*K$6 -> 0.003636363636 | L8: ='Transformované matice'!L51*L$6 -> 0.001375 | M8: ='Transformované matice'!M51*M$6 -> 0.007667269439 | N8: ='Transformované matice'!N51*N$6 -> 0.01275555556 | O8: ='Transformované matice'!O51*O$6 -> 0.01773333333 | P8: ='Transformované matice'!P51*P$6 -> 0.01235294118 | Q8: ='Transformované matice'!Q51*Q$6 -> 0.02216666667
B9: V2 | C9: ='Transformované matice'!C52*C$6 -> 0 | D9: ='Transformované matice'!D52*D$6 -> 0.02301980198 | E9: ='Transformované matice'!E52*E$6 -> 0.003183663998 | F9: ='Transformované matice'!F52*F$6 -> 0.001431818182 | G9: ='Transformované matice'!G52*G$6 -> 0.01161702128 | H9: ='Transformované matice'!H52*H$6 -> 0.006268656716 | I9: ='Transformované matice'!I52*I$6 -> 0.001818181818 | J9: ='Transformované matice'!J52*J$6 -> 0.004583333333 | K9: ='Transformované matice'!K52*K$6 -> 0.005818181818 | L9: ='Transformované matice'!L52*L$6 -> 0.001375 | M9: ='Transformované matice'!M52*M$6 -> 0.009009041591 | N9: ='Transformované matice'!N52*N$6 -> 0.009111111111 | O9: ='Transformované matice'!O52*O$6 -> 0.01266666667 | P9: ='Transformované matice'!P52*P$6 -> 0.01976470588 | Q9: ='Transformované matice'!Q52*Q$6 -> 0.02216666667
B10: V3 | C10: ='Transformované matice'!C53*C$6 -> 0.007542857143 | D10: ='Transformované matice'!D53*D$6 -> 0.02071782178 | E10: ='Transformované matice'!E53*E$6 -> 0.003411068569 | F10: ='Transformované matice'!F53*F$6 -> 0.003988636364 | G10: ='Transformované matice'!G53*G$6 -> 0.009957446809 | H10: ='Transformované matice'!H53*H$6 -> 0.008955223881 | I10: ='Transformované matice'!I53*I$6 -> 0.009090909091 | J10: ='Transformované matice'!J53*J$6 -> 0.003823809524 | K10: ='Transformované matice'!K53*K$6 -> 0.005818181818 | L10: ='Transformované matice'!L53*L$6 -> 0.00275 | M10: ='Transformované matice'!M53*M$6 -> 0.004983725136 | N10: ='Transformované matice'!N53*N$6 -> 0.009111111111 | O10: ='Transformované matice'!O53*O$6 -> 0.01266666667 | P10: ='Transformované matice'!P53*P$6 -> 0.01976470588 | Q10: ='Transformované matice'!Q53*Q$6 -> 0.0249375
B11: V4 | C11: ='Transformované matice'!C54*C$6 -> 0.005657142857 | D11: ='Transformované matice'!D54*D$6 -> 0.01918316832 | E11: ='Transformované matice'!E54*E$6 -> 0.003756236222 | F11: ='Transformované matice'!F54*F$6 -> 0.002710227273 | G11: ='Transformované matice'!G54*G$6 -> 0.01327659574 | H11: ='Transformované matice'!H54*H$6 -> 0.007164179104 | I11: ='Transformované matice'!I54*I$6 -> 0.009090909091 | J11: ='Transformované matice'!J54*J$6 -> 0.004295238095 | K11: ='Transformované matice'!K54*K$6 -> 0.003636363636 | L11: ='Transformované matice'!L54*L$6 -> 0.001375 | M11: ='Transformované matice'!M54*M$6 -> 0 | N11: ='Transformované matice'!N54*N$6 -> 0.009111111111 | O11: ='Transformované matice'!O54*O$6 -> 0.01266666667 | P11: ='Transformované matice'!P54*P$6 -> 0.01729411765 | Q11: ='Transformované matice'!Q54*Q$6 -> 0.016625
B12: V5 | C12: ='Transformované matice'!C55*C$6 -> 0.005657142857 | D12: ='Transformované matice'!D55*D$6 -> 0.03452970297 | E12: ='Transformované matice'!E55*E$6 -> 0.007918552036 | F12: ='Transformované matice'!F55*F$6 -> 0.01022727273 | G12: ='Transformované matice'!G55*G$6 -> 0.01493617021 | H12: ='Transformované matice'!H55*H$6 -> 0.008955223881 | I12: ='Transformované matice'!I55*I$6 -> 0.009090909091 | J12: ='Transformované matice'!J55*J$6 -> 0 | K12: ='Transformované matice'!K55*K$6 -> 0.002909090909 | L12: ='Transformované matice'!L55*L$6 -> 0.001375 | M12: ='Transformované matice'!M55*M$6 -> 0.006900542495 | N12: ='Transformované matice'!N55*N$6 -> 0.01275555556 | O12: ='Transformované matice'!O55*O$6 -> 0.01773333333 | P12: ='Transformované matice'!P55*P$6 -> 0.01976470588 | Q12: ='Transformované matice'!Q55*Q$6 -> 0.01108333333
B13: V6 | C13: ='Transformované matice'!C56*C$6 -> 0 | D13: ='Transformované matice'!D56*D$6 -> 0.01611386139 | E13: ='Transformované matice'!E56*E$6 -> 0.006416057547 | F13: ='Transformované matice'!F56*F$6 -> 0.007670454545 | G13: ='Transformované matice'!G56*G$6 -> 0.009957446809 | H13: ='Transformované matice'!H56*H$6 -> 0.008955223881 | I13: ='Transformované matice'!I56*I$6 -> 0.005454545455 | J13: ='Transformované matice'!J56*J$6 -> 0.004583333333 | K13: ='Transformované matice'!K56*K$6 -> 0.004363636364 | L13: ='Transformované matice'!L56*L$6 -> 0.001375 | M13: ='Transformované matice'!M56*M$6 -> 0.01188426763 | N13: ='Transformované matice'!N56*N$6 -> 0.01093333333 | O13: ='Transformované matice'!O56*O$6 -> 0.0152 | P13: ='Transformované matice'!P56*P$6 -> 0.01729411765 | Q13: ='Transformované matice'!Q56*Q$6 -> 0.01385416667
B14: V7 | C14: ='Transformované matice'!C57*C$6 -> 0.003142857143 | D14: ='Transformované matice'!D57*D$6 -> 0.02148514851 | E14: ='Transformované matice'!E57*E$6 -> 0.006334841629 | F14: ='Transformované matice'!F57*F$6 -> 0.008181818182 | G14: ='Transformované matice'!G57*G$6 -> 0.009957446809 | H14: ='Transformované matice'!H57*H$6 -> 0.01432835821 | I14: ='Transformované matice'!I57*I$6 -> 0.0009090909091 | J14: ='Transformované matice'!J57*J$6 -> 0 | K14: ='Transformované matice'!K57*K$6 -> 0.005818181818 | L14: ='Transformované matice'!L57*L$6 -> 0.001375 | M14: ='Transformované matice'!M57*M$6 -> 0.01255515371 | N14: ='Transformované matice'!N57*N$6 -> 0.01822222222 | O14: ='Transformované matice'!O57*O$6 -> 0.02533333333 | P14: ='Transformované matice'!P57*P$6 -> 0.01976470588 | Q14: ='Transformované matice'!Q57*Q$6 -> 0.02216666667
C15: x | D15: x | E15: x | F15: x | G15: x | H15: x | I15: x | J15: x | K15: x | L15: x | M15: x | N15: x | O15: x | P15: x | Q15: x
C16: x | D16: x | E16: x | F16: x | G16: x | H16: x | I16: x | J16: x | K16: x | L16: x | M16: x | N16: x | O16: x | P16: x | Q16: x
C17: x | D17: x | E17: x | F17: x | G17: x | H17: x | I17: x | J17: x | K17: x | L17: x | M17: x | N17: x | O17: x | P17: x | Q17: x
C18: x | D18: x | E18: x | F18: x | G18: x | H18: x | I18: x | J18: x | K18: x | L18: x | M18: x | N18: x | O18: x | P18: x | Q18: x
C19: x | D19: x | E19: x | F19: x | G19: x | H19: x | I19: x | J19: x | K19: x | L19: x | M19: x | N19: x | O19: x | P19: x | Q19: x
C20: x | D20: x | E20: x | F20: x | G20: x | H20: x | I20: x | J20: x | K20: x | L20: x | M20: x | N20: x | O20: x | P20: x | Q20: x
C21: x | D21: x | E21: x | F21: x | G21: x | H21: x | I21: x | J21: x | K21: x | L21: x | M21: x | N21: x | O21: x | P21: x | Q21: x
C22: x | D22: x | E22: x | F22: x | G22: x | H22: x | I22: x | J22: x | K22: x | L22: x | M22: x | N22: x | O22: x | P22: x | Q22: x
B23: Ideální varianta | C23: =MAX(C8:C22) -> 0.007542857143 | D23: =MAX(D8:D22) -> 0.03452970297 | E23: 0.007918552036 | F23: 0.01022727273 | G23: 0.01493617021 | H23: 0.01432835821 | I23: 0.009090909091 | J23: 0.004714285714 | K23: 0.005818181818 | L23: 0.00275 | M23: 0.01255515371 | N23: 0.01822222222 | O23: 0.02533333333 | P23: 0.01976470588 | Q23: 0.0249375
B24: Bazální varianta | C24: =MIN(C8:C22) -> 0 | D24: =MIN(D8:D22) -> 0.01611386139 | E24: 0.003183663998 | F24: 0.001431818182 | G24: 0.00829787234 | H24: 0.005373134328 | I24: 0.0009090909091 | J24: 0 | K24: 0.002909090909 | L24: 0.001375 | M24: 0 | N24: 0.009111111111 | O24: 0.01266666667 | P24: 0.01235294118 | Q24: 0.01108333333
B27: Dílčí vzdálenost od ideální varianty
B28: --- | C28: k1 | D28: k2 | E28: k3 | F28: k4 | G28: k5 | H28: k6
B29: V1 | C29: =(C8-C$23)^2 -> 5.689469388e-05 | D29: =(D8-D$23)^2 -> 0.0002125533036 | E29: 1.551550072e-05 | F29: 7.119140625e-05 | G29: 4.406699864e-05 | H29: 8.019603475e-05 | I29: 2.066115702e-05 | J29: 0 | K29: 4.760330579e-06 | L29: 1.890625e-06 | M29: 2.389141261e-05 | N29: 2.988444444e-05 | O29: 5.776e-05 | P29: 5.493425606e-05 | Q29: 7.677517361e-06
B30: V2 | C30: =(C9-C$23)^2 -> 5.689469388e-05 | D30: 0.0001324778208 | E30: 2.241916473e-05 | F30: 7.736002066e-05 | G30: 1.101674966e-05 | H30: 6.495878815e-05 | I30: 5.289256198e-05 | J30: 1.714852608e-08 | K30: 0 | L30: 1.890625e-06 | M30: 1.257491114e-05 | N30: 8.301234568e-05 | O30: 0.0001604444444 | P30: 0 | Q30: 7.677517361e-06
B31: V3 | C31: 0 | D31: 0.000190768062 | E31: 2.03174072e-05 | F31: 3.892058368e-05 | G31: 2.478768674e-05 | H31: 2.887057251e-05 | I31: 0 | J31: 7.929478458e-07 | K31: 0 | L31: 0 | M31: 5.732653061e-05 | N31: 8.301234568e-05 | O31: 0.0001604444444 | P31: 0 | Q31: 0
B32: V4 | C32: 3.555918367e-06 | D32: 0.0002355161259 | E32: 1.732487293e-05 | F32: 5.650597237e-05 | G32: =(G11-G$23)^2 -> 2.754187415e-06 | H32: 5.132546224e-05 | I32: 0 | J32: 1.75600907e-07 | K32: 4.760330579e-06 | L32: 1.890625e-06 | M32: 0.0001576318846 | N32: 8.301234568e-05 | O32: 0.0001604444444 | P32: 6.103806228e-06 | Q32: 6.909765625e-05
B33: V5 | C33: 3.555918367e-06 | D33: 0 | E33: 0 | F33: 0 | G33: 0 | H33: 2.887057251e-05 | I33: 0 | J33: 2.22244898e-05 | K33: 8.462809917e-06 | L33: 1.890625e-06 | M33: 3.197462795e-05 | N33: 2.988444444e-05 | O33: 5.776e-05 | P33: 0 | Q33: 0.000191937934
B34: V6 | C34: 5.689469388e-05 | D34: 0.0003391432213 | E34: 2.257489689e-06 | F34: 6.537319215e-06 | G34: 2.478768674e-05 | H34: 2.887057251e-05 | I34: 1.32231405e-05 | J34: 1.714852608e-08 | K34: 2.115702479e-06 | L34: 1.890625e-06 | M34: 4.500881269e-07 | N34: 5.312790123e-05 | O34: 0.0001026844444 | P34: 6.103806228e-06 | Q34: 0.0001228402778
B35: V7 | C35: 1.936e-05 | D35: 0.0001701604009 | E35: 2.508138654e-06 | F35: 4.183884298e-06 | G35: 2.478768674e-05 | H35: 0 | I35: 6.694214876e-05 | J35: 2.22244898e-05 | K35: 0 | L35: 1.890625e-06 | M35: 0 | N35: 0 | O35: 0 | P35: 0 | Q35: 7.677517361e-06
B46: Dílčí vzdálenost od bazální varianty
B47: --- | C47: k1 | D47: k2 | E47: k3 | F47: k4 | G47: k5 | H47: k6
B48: V1 | C48: =(C8-C$24)^2 -> 0 | D48: =(D8-D$24)^2 -> 1.471975787e-05 | E48: 6.334822783e-07 | F48: 1.281314566e-07 | G48: 0 | H48: 0 | I48: 1.32231405e-05 | J48: 2.22244898e-05 | K48: 5.289256198e-07 | L48: 0 | M48: 5.878702066e-05 | N48: 1.328197531e-05 | O48: 2.567111111e-05 | P48: 0 | Q48: 0.0001228402778
B49: V2 | C49: =(C9-C$24)^2 -> 0 | D49: 4.769201549e-05 | E49: 0 | F49: 0 | G49: 1.101674966e-05 | H49: 8.019603475e-07 | I49: 8.26446281e-07 | J49: 2.100694444e-05 | K49: 8.462809917e-06 | L49: 0 | M49: 8.116283039e-05 | N49: 0 | O49: 0 | P49: 5.493425606e-05 | Q49: 0.0001228402778
B50: V3 | C50: 5.689469388e-05 | D50: 2.119645133e-05 | E50: 5.171283905e-08 | F50: 6.537319215e-06 | G50: 2.754187415e-06 | H50: 1.283136556e-05 | I50: 6.694214876e-05 | J50: 1.462151927e-05 | K50: 8.462809917e-06 | L50: 1.890625e-06 | M50: 2.483751623e-05 | N50: 0 | O50: 0 | P50: 5.493425606e-05 | Q50: 0.000191937934
B51: V4 | C51: 3.200326531e-05 | D51: 9.420645035e-06 | E51: 3.278389519e-07 | F51: 1.634329804e-06 | G51: 2.478768674e-05 | H51: 3.20784139e-06 | I51: 6.694214876e-05 | J51: 1.844907029e-05 | K51: 5.289256198e-07 | L51: 0 | M51: 0 | N51: 0 | O51: 0 | P51: 2.441522491e-05 | Q51: 3.071006944e-05
B52: V5 | C52: 3.200326531e-05 | D52: 0.0003391432213 | E52: 2.241916473e-05 | F52: 7.736002066e-05 | G52: 4.406699864e-05 | H52: 1.283136556e-05 | I52: 6.694214876e-05 | J52: 0 | K52: 0 | L52: 0 | M52: 4.761748673e-05 | N52: 1.328197531e-05 | O52: 2.567111111e-05 | P52: 5.493425606e-05 | Q52: 0
B53: V6 | C53: 0 | D53: 0 | E53: 1.044836806e-05 | F53: 3.892058368e-05 | G53: 2.754187415e-06 | H53: 1.283136556e-05 | I53: 2.066115702e-05 | J53: 2.100694444e-05 | K53: 2.115702479e-06 | L53: 0 | M53: 0.0001412358171 | N53: 3.320493827e-06 | O53: 6.417777778e-06 | P53: 2.441522491e-05 | Q53: 7.677517361e-06
B54: V7 | C54: 9.87755102e-06 | D54: 2.885072542e-05 | E54: 9.929920461e-06 | F54: 4.55625e-05 | G54: 2.754187415e-06 | H54: 8.019603475e-05 | I54: 0 | J54: 0 | K54: 8.462809917e-06 | L54: 0 | M54: 0.0001576318846 | N54: 8.301234568e-05 | O54: 0.0001604444444 | P54: 5.493425606e-05 | Q54: 0.0001228402778
B65: Vzdálenost variant
B66: Varianta | C66: Vzdálenost od ideálního bodu | G66: Vzdálenost od bazálního bodu | K66: Relativní vzdálenost
B67: V1 | C67: =(SUM(C29:H29))^(1/2) -> 0.02191843831 | G67: =(SUM(C48:H48))^(1/2) -> 0.003934637417 | K67: =G67/(C67+G67) -> 0.1521922366
B68: V2 | C68: =(SUM(C30:H30))^(1/2) -> 0.01910830285 | G68: =(SUM(C49:H49))^(1/2) -> 0.00771431951 | K68: =G68/(C68+G68) -> 0.2876049704
B69: V3 | C69: 0.0174259666 | G69: 0.0100132777 | K69: 0.364925418
B70: V4 | C70: 0.01915678833 | G70: 0.008448763651 | K70: 0.3060530598
B71: V5 | C71: 0.005694426299 | G71: 0.02297442135 | K71: 0.8013723338
B72: V6 | C72: 0.02141240256 | G72: 0.008059435756 | K72: 0.2734622683
B73: V7 | C73: 0.01486607247 | G73: 0.01331055668 | K73: 0.4723970567
